[Event "Charlotte CC Fall GM-ALTO 2024"]
[Site "Charlotte"]
[Date "2024.11.24"]
[Round "5.1"]
[White "Williams, Justus"]
[Black "Stremavicius, Titas"]
[Result "0-1"]
[ECO "A07"]
[WhiteElo "2355"]
[BlackElo "2545"]
[Annotator "TA"]
[PlyCount "78"]
[EventDate "2024.11.22"]
[EventType "tourn"]
[EventCountry "USA"]
[SourceTitle "playchess.com"]
[Source "ChessBase"]
[SourceQuality "1"]
[TimeControl "5400+30"]

{[%evp 27,78,32,42,39,51,30,20,13,22,-7,0,0,19,16,11,10,20,20,16,15,25,39,35,20,32,0,0,0,10,14,11,-59,0,-184,-103,-422,-421,-512,-530,-506,-352,-499,-233,-264,-270,-266,-256,-672,-666,-1620,-1320,-29996,-29997]} 1. Nf3 {[%emt 0:07:14]} d5 {[%emt 0:00:35]} 2. g3 {[%emt 0:00:26]} b6 {[%emt 0:05:12]} 3. Bg2 {[%emt 0:01:40]} Bb7 {[%emt 0:00:06]} 4. d4 {[%emt 0:02:57]} e6 {[%emt 0:03:07]} 5. O-O {[%emt 0:03:00]} Nd7 {[%emt 0:02:56]} 6. c4 {[%emt 0:02:37] A07: Réti Opening: New York and Capablanca Systems.} dxc4 {[%emt 0:00:09]} 7. Qa4 {[%emt 0:00:56]} Ngf6 {[%emt 0:12:53]} 8. Bg5 {[%emt 0:04:30]} a6 {[%emt 0:04:56]} 9. Bxf6 {[%emt 0:02:14]} Qxf6 {[%emt 0:14:59]} 10. Qxc4 {[%emt 0:05:41]} Qd8 $146 {[%emt 0:00:27]} ({Predecessor:} 10... c5 11. Nc3 Rc8 12. Rac1 b5 13. Qb3 c4 14. Qc2 Be7 15. Rfd1 Ba8 16. d5 O-O 17. dxe6 {½-½ Husemann,A (2091)-Kurpnieks,V (2055) SA-2011-0-00231}) 11. Nc3 {[%emt 0:02:16]} b5 {[%emt 0:02:34]} 12. Qd3 {[%emt 0:01:03]} Be7 {[%emt 0:02:05]} 13. Rfd1 {[%emt 0:00:53]} Rb8 {[%emt 0:01:33]} 14. d5 {[%emt 0:21:22]} e5 $1 {[%emt 0:02:06]} (14... Nc5 $2 15. Qe3 O-O 16. b4 $18) 15. Bh3 {[%emt 0:01:12]} Bd6 {[%emt 0:02:12]} 16. a4 {[%emt 0:04:44]} bxa4 {[%emt 0:03:29]} 17. Nxa4 {[%emt 0:03:35]} (17. Rxa4 Nc5 18. Qc4 Nxa4 19. Qxa4+ Kf8 $17) 17... O-O {[%emt 0:01:58]} 18. Rac1 {[%emt 0:01:38]} Nf6 {[%emt 0:04:40]} 19. e4 {[%emt 0:08:02]} Qe8 {[%emt 0:01:14]} (19... Bxd5 $5 20. exd5 e4 $15) 20. Nc3 {[%emt 0:03:18]} Bc8 {[%emt 0:01:30]} 21. Bxc8 {[%emt 0:02:18]} Qxc8 {[%emt 0:00:04]} 22. Rc2 {[%emt 0:02:15]} Rb4 {[%emt 0:00:44]} 23. Ra1 {[%emt 0:00:57]} Nd7 {[%emt 0:32:31]} 24. Na2 {[%emt 0:05:14]} (24. Rxa6 $2 Nc5 25. Qd1 Qxa6 $19 (25... Nxa6 $2 26. Qb1 $19)) 24... Rb5 {[%emt 0:00:00]} (24... Nc5 $2 25. Rxc5 Rxb2 26. Rc2 $18) 25. b4 {[%emt 0:03:04]} Qb7 {[%emt 0:00:00]} 26. Rac1 {[%emt 0:02:40]} f5 {[%emt 0:00:00]} 27. Rc6 {[%emt 0:00:59]} Nf6 {[%emt 0:00:00]} 28. Ng5 {[%emt 0:00:23]} (28. exf5 $2 e4 (28... Rxd5 29. Qc4 $14) 29. Qc4 exf3 $19) (28. Nd2 {simplifies} Nxe4 29. Nxe4 fxe4 30. Qxe4 Re8 31. Kg2) 28... fxe4 {[%emt 0:00:00]} (28... Nxe4 {simplifies} 29. Nxe4 fxe4 30. Qxe4 g6) 29. Qc4 {[%emt 0:00:34]} ({Better is} 29. Nxe4 $11 Nxe4 30. Qxe4) 29... Qa7 {[%emt 0:00:00]} (29... Rxd5 $2 30. Nc3 (30. Nxe4 Qb5 $11) 30... Qxb4 31. Nxd5 Qxc4 32. R1xc4 (32. R6xc4 Nxd5 33. Nxe4 Nf6 $18) 32... Nxd5 33. Nxe4 $18 (33. Rxa6 e3 $14)) (29... e3 30. fxe3 Qa7 (30... Bxb4 $2 31. d6+ Kh8 32. dxc7 $18) (30... Rxd5 $2 31. Nc3 $18) 31. Qd3 $11) (29... a5 $1 $15 30. bxa5 Rxa5 (30... Nxd5 $2 31. Nc3 $18) (30... e3 31. a6 $11)) 30. Ne6 $2 {[%emt 0:01:48] [#]} (30. Qe2 $11) 30... Ng4 $1 $19 {[%emt 0:00:00]} 31. Rc5 $2 {[%emt 0:00:13][%mdl 8192]} (31. Nc5 $17 {nothing else works.} Rxf2 (31... Nxf2 32. Rxa6 Qb8 33. Nd7 $11) 32. Rxa6 Bxc5 33. d6+ (33. Qxb5 $2 Be3 $19) (33. Rxa7 $2 Bxa7 34. d6+ Kf8 $19) 33... Rf7+ 34. bxc5 Qxa6 35. Rf1) 31... Rxf2 $19 {[%emt 0:00:00]} (31... Bxc5 32. bxc5 Rxf2 33. d6 cxd6 (33... Rxh2 34. Ng5+ Kh8 35. Nf7+ Kg8 36. Nh6+ Kh8 37. Qg8#) 34. Ng5+ Kh8 35. Qe6 $19) 32. Qxe4 {[%emt 0:02:55]} Nf6 {[%emt 0:00:00]} (32... Rxa2 33. Qxg4 Bxc5+ 34. bxc5 $11) 33. Qc4 {[%emt 0:00:32]} Rb2 {[%emt 0:00:00]} 34. Kh1 {[%emt 0:02:45]} (34. Rf1 {was forced.} R2xb4 (34... Bxc5+ $2 35. bxc5 Rb1 36. Nc1 $19) 35. Nxb4 Rxc5 (35... Bxc5+ $2 36. Nxc5 Rxc5 37. Qxa6 $19) 36. Qxa6 Qxa6 (36... Rxd5+ 37. Qxa7 Rd2 38. Qa8+ Kf7 39. Qc8 h6 40. Qd7+ Be7 41. Qxd2 Kxe6 42. Qa2+ Kd7 43. Qf7) 37. Nxa6) 34... Qb7 {[%emt 0:00:00]} (34... Bxc5 $142 35. Nxc5 Qa8) 35. Rc6 $19 {[%emt 0:01:16]} Rxd5 {[%emt 0:00:00]} (35... Nxd5 $2 {too greedy.} 36. Qg4 g6 (36... Rxa2 37. Qxg7#) 37. Nd8 $18) 36. Nxc7 {[%emt 0:00:46]} Bxc7 {[%emt 0:00:00]} 37. Rxf6 $2 {[%emt 0:00:29]} (37. Rxc7 Qb5 38. Rc8+ Kf7 39. Rc7+ Kg6 40. Qxb5 axb5 (40... Rxb5 41. R7c2 $17) 41. R7c2 Rd1+ 42. Rxd1 Rxc2 43. Nc1) 37... gxf6 $19 {[%emt 0:02:11]} 38. Rd1 {[%emt 0:00:23]} Qc6 {[%emt 0:01:58]} 39. Qg4+ {[%emt 0:00:18]} Kf8 {[%emt 0:00:06]} 0-1

[Event "Charlotte CC Fall GM-ALTO 2024"]
[Site "Charlotte"]
[Date "2024.11.24"]
[Round "5.2"]
[White "Mitrabha, Guha"]
[Black "Griffith, Kyron"]
[Result "1-0"]
[ECO "E46"]
[WhiteElo "2511"]
[BlackElo "2407"]
[Annotator "TA"]
[PlyCount "95"]
[EventDate "2024.11.22"]
[EventType "tourn"]
[EventCountry "USA"]
[SourceTitle "playchess.com"]
[Source "ChessBase"]
[SourceQuality "1"]
[TimeControl "5400+30"]

{[%evp 9,95,-8,6,6,5,8,17,8,2,9,48,47,55,21,27,19,43,34,30,20,52,0,0,0,1,3,17,24,24,19,23,17,20,19,23,27,38,41,63,62,64,36,66,62,79,77,87,83,97,96,82,91,82,77,71,81,182,186,176,177,185,165,177,143,149,132,166,126,200,190,252,261,426,394,736,450,584,570,1678,1638,1706,1449,1934,1331,29988,29989,29990,29989]} 1. c4 {[%emt 0:11:17]} Nf6 {[%emt 0:00:07]} 2. Nc3 {[%emt 0:00:15]} e6 {[%emt 0:00:20]} 3. d4 {[%emt 0:00:18]} Bb4 {[%emt 0:00:25]} 4. e3 {[%emt 0:00:07]} O-O {[%emt 0:02:25]} 5. Bd2 {[%emt 0:00:06]} c5 {[%emt 0:00:21]} 6. a3 {[%emt 0:00:07]} Bxc3 {[%emt 0:00:22]} 7. Bxc3 {[%emt 0:00:02]} Ne4 {[%emt 0:00:22]} 8. Ne2 {[%emt 0:00:06][%cal Bg1e2,Be2c3,Bc3d5][%mdl 32] The position is equal.} b6 {[%emt 0:00:50]} 9. d5 {[%emt 0:00:06]} Nxc3 {[%emt 0:05:12]} 10. Nxc3 {[%emt 0:00:32]} Bb7 {[%emt 0:00:27]} 11. Bd3 {[%emt 0:01:56]} exd5 {[%emt 0:01:00]} 12. Qf3 {[%emt 0:09:50]} d6 {[%emt 0:21:39]} 13. Nxd5 {[%emt 0:00:39] [#] Qe4 is the strong threat.} Nc6 {[%emt 0:01:01]} 14. Qh3 {[%emt 0:05:48][%csl Gd3][%cal Rh3h7]} g6 {[%emt 0:01:19][%cal Ob6b5]} 15. Rd1 {[%emt 0:00:58]} (15. Be2 $14) 15... Ne5 $11 {[%emt 0:03:43][%cal Ob6b5]} 16. Be2 {[%emt 0:00:10]} Bxd5 {[%emt 0:00:50]} 17. Rxd5 {[%emt 0:00:07]} Qe7 {[%emt 0:01:12]} 18. O-O {[%emt 0:00:26]} f5 {[%emt 0:01:36]} 19. Rfd1 {[%emt 0:00:23]} Rf6 {[%emt 0:01:31]} 20. Qh4 {[%emt 0:03:47][%cal Od5d6]} Re8 {[%emt 0:01:36]} 21. R5d2 {[%emt 0:01:09]} Nf7 {[%emt 0:05:55]} 22. h3 {[%emt 0:01:59]} Qe5 {[%emt 0:49:17]} 23. Qf4 {[%emt 0:04:25]} Qe7 {[%emt 0:00:00]} 24. Bf3 {[%emt 0:00:20]} Kg7 {[%emt 0:00:00]} 25. b4 {[%emt 0:00:57] White is more active.} Ne5 {[%emt 0:00:00]} 26. Bd5 {[%emt 0:00:36]} Rff8 {[%emt 0:00:00]} 27. Qg3 {[%emt 0:01:44]} Rd8 {[%emt 0:00:00]} 28. b5 {[%emt 0:00:36]} Qf6 {[%emt 0:00:00]} 29. a4 {[%emt 0:01:00]} f4 {[%emt 0:00:00]} 30. exf4 {[%emt 0:00:11]} Qxf4 {[%emt 0:04:00]} 31. Qc3 {[%emt 0:01:42]} Qf6 {[%emt 0:00:00]} 32. a5 {[%emt 0:01:13]} bxa5 {[%emt 0:00:00]} (32... g5 $16) 33. Qxa5 $18 {[%emt 0:00:39]} Rd7 {[%emt 0:00:00]} 34. Ra2 {[%emt 0:00:48]} g5 {[%emt 0:00:00]} 35. Qc3 {[%emt 0:01:10]} h5 {[%emt 0:00:00][%cal Bh7h5,Bh5h4][%mdl 32]} 36. Qg3 {[%emt 0:01:08]} h4 {[%emt 0:00:00]} 37. Qc3 {[%emt 0:00:27]} Kh6 {[%emt 0:00:00]} 38. Qd2 {[%emt 0:00:40]} Qf4 {[%emt 0:00:00]} (38... Re8 $16 39. Qc3 Kg7) 39. Bc6 {[%emt 0:10:26]} Rdd8 {[%emt 0:00:00]} (39... Qxd2 {is a better defense.} 40. Rdxd2 (40. Raxd2 Re7 $18) 40... Re7) 40. Rxa7 {[%emt 0:03:23]} Qxc4 $2 {[%emt 0:00:00]} (40... Qxd2 {was called for.} 41. Rxd2 Rf4) 41. b6 {[%emt 0:01:48]} Rf6 $2 {[%emt 0:00:28]} ({And not} 41... Nxc6 42. Qxd6+ Rxd6 43. Rxd6+) (41... Qf4) 42. Bd5 {[%emt 0:00:17]} Qf4 {[%emt 0:00:52]} 43. Qc2 {[%emt 0:00:36]} Nd7 {[%emt 0:01:38] Black is weak on the light squares} 44. Re1 {[%emt 0:01:52] [#] Black must now prevent Re7.} Rg6 {[%emt 0:03:14]} 45. Re7 {[%emt 0:02:19]} Nf6 {[%emt 0:00:21]} 46. Be4 {[%emt 0:00:35]} Rdg8 {[%emt 0:00:48]} 47. Bxg6 {[%emt 0:00:18]} Rxg6 {[%emt 0:00:02]} 48. Ra4 {[%emt 0:01:12] Weighted Error Value: White=0.15 (very precise) /Black=0.40.  Mistake:       	White=1     	Black=5      Inaccurate:     	White=3     	Black=4      OK:         	White=19    	Black=18     Best:        	White=3     	---} 1-0

[Event "Charlotte CC Fall GM-ALTO 2024"]
[Site "Charlotte"]
[Date "2024.11.24"]
[Round "5.3"]
[White "Padmini, Rout"]
[Black "Wang, Tianqi"]
[Result "0-1"]
[ECO "B12"]
[WhiteElo "2334"]
[BlackElo "2323"]
[Annotator "RC"]
[PlyCount "76"]
[EventDate "2024.11.22"]
[EventType "tourn"]
[EventCountry "USA"]
[SourceTitle "playchess.com"]
[Source "ChessBase"]
[SourceQuality "1"]
[TimeControl "5400+30"]

1. e4 {[%emt 0:05:17]} c6 {[%emt 0:00:07]} 2. d4 {[%emt 0:01:29]} d5 {[%emt 0:00:06]} 3. e5 {[%emt 0:00:07]} Bf5 {[%emt 0:00:05]} 4. Nf3 {[%emt 0:00:19]} e6 {[%emt 0:00:05]} 5. Be2 {[%emt 0:00:34]} a6 {[%emt 0:00:04]} 6. O-O {[%emt 0:02:07]} Bg6 {[%emt 0:00:14]} 7. Nbd2 {[%emt 0:05:55]} c5 {[%emt 0:00:12]} 8. c4 {[%emt 0:11:08]} Nc6 {[%emt 0:00:10]} 9. cxd5 {[%emt 0:19:42]} exd5 {[%emt 0:00:10]} 10. dxc5 {[%emt 0:01:43]} Bxc5 {[%emt 0:00:11]} 11. Nb3 {[%emt 0:02:46]} Bb6 {[%emt 0:00:14]} 12. Nbd4 {[%emt 0:12:37]} Nge7 {[%emt 0:00:31]} 13. Be3 {[%emt 0:00:07]} O-O {[%emt 0:00:23]} 14. Nxc6 {[%emt 0:01:29]} Nxc6 {[%emt 0:01:48]} 15. Bxb6 {[%emt 0:08:36]} Qxb6 {[%emt 0:00:19]} 16. Qxd5 {[%emt 0:00:21]} Qxb2 {[%emt 0:00:18]} 17. Bc4 {[%emt 0:00:28]} Rfe8 {[%emt 0:06:14]} 18. Rfe1 {[%emt 0:08:14]} Nb4 {[%emt 0:02:22]} 19. Qxb7 {[%emt 0:02:53]} Reb8 {[%emt 0:10:35]} 20. Qe7 {[%emt 0:03:21]} Nc2 {[%emt 0:30:50]} 21. e6 {[%emt 0:00:46]} Qf6 {[%emt 0:03:52]} 22. exf7+ {[%emt 0:08:39]} Bxf7 {[%emt 0:00:10]} 23. Bxf7+ {[%emt 0:00:43]} Qxf7 {[%emt 0:04:19]} 24. Qe4 {[%emt 0:00:15]} Nxe1 {[%emt 0:02:53]} 25. Ng5 {[%emt 0:00:12]} Nf3+ {[%emt 0:00:09]} 26. gxf3 {[%emt 0:00:51]} Qg6 {[%emt 0:00:05]} 27. Qd5+ {[%emt 0:01:11]} Kh8 {[%emt 0:00:10]} 28. Kh1 {[%emt 0:00:13]} h6 {[%emt 0:03:15]} 29. Nf7+ {[%emt 0:00:32]} Kh7 {[%emt 0:00:07]} 30. Rg1 {[%emt 0:00:23]} Qf6 {[%emt 0:17:07]} 31. Qe4+ {[%emt 0:02:21]} Kg8 {[%emt 0:00:08]} 32. Ne5 {[%emt 0:00:06]} Rf8 {[%emt 0:00:27]} 33. Qd5+ {[%emt 0:00:58]} Kh7 {[%emt 0:00:14]} 34. Rg3 {[%emt 0:00:12]} Qf5 {[%emt 0:00:42]} 35. f4 {[%emt 0:00:15]} Rab8 {[%emt 0:01:27]} 36. Kg2 {[%emt 0:00:20]} Rb4 {[%emt 0:03:39]} 37. Rf3 {[%emt 0:01:16]} Rxf4 {[%emt 0:01:07]} 38. Rxf4 {[%emt 0:00:23]} Qxf4 {[%emt 0:00:04]} 0-1

[Event "Charlotte CC Fall GM-ALTO 2024"]
[Site "Charlotte"]
[Date "2024.11.24"]
[Round "5.4"]
[White "Stefanov, Emil"]
[Black "Gedajlovic, Max"]
[Result "1/2-1/2"]
[ECO "C19"]
[WhiteElo "2362"]
[BlackElo "2377"]
[Annotator "RC"]
[PlyCount "79"]
[EventDate "2024.11.22"]
[EventType "tourn"]
[EventCountry "USA"]
[SourceTitle "playchess.com"]
[Source "ChessBase"]
[SourceQuality "1"]
[TimeControl "5400+30"]

1. e4 {[%emt 0:00:06]} e6 {[%emt 0:02:32]} 2. d4 {[%emt 0:00:09]} d5 {[%emt 0:00:08]} 3. Nc3 {[%emt 0:00:07]} Bb4 {[%emt 0:00:07]} 4. e5 {[%emt 0:00:08]} c5 {[%emt 0:00:13]} 5. a3 {[%emt 0:00:20]} Bxc3+ {[%emt 0:00:54]} 6. bxc3 {[%emt 0:00:05]} Ne7 {[%emt 0:00:09]} 7. h4 {[%emt 0:00:05]} Qc7 {[%emt 0:00:58]} 8. h5 {[%emt 0:00:09]} h6 {[%emt 0:00:09]} 9. Nf3 {[%emt 0:00:37]} b6 {[%emt 0:01:03]} 10. Bb5+ {[%emt 0:00:11]} Bd7 {[%emt 0:00:31]} 11. Bd3 {[%emt 0:00:10]} Ba4 {[%emt 0:00:32]} 12. Be3 {[%emt 0:00:34]} c4 {[%emt 0:07:20]} 13. Be2 {[%emt 0:00:09]} Nbc6 {[%emt 0:00:06]} 14. Nh4 {[%emt 0:00:54]} O-O-O {[%emt 0:01:07]} 15. f4 {[%emt 0:00:06]} Rdg8 {[%emt 0:12:31]} 16. Kd2 {[%emt 0:00:20]} Kb7 {[%emt 0:02:29]} 17. g4 {[%emt 0:00:40]} g6 {[%emt 0:02:38]} 18. Qf1 {[%emt 0:06:25]} Qc8 {[%emt 0:03:16]} 19. Qh3 {[%emt 0:05:23]} Na5 {[%emt 0:03:51]} 20. Rhb1 {[%emt 0:08:47]} Ka8 {[%emt 0:05:17]} 21. Rb4 {[%emt 0:01:47]} Bd7 {[%emt 0:00:51]} 22. a4 {[%emt 0:00:16]} Qf8 {[%emt 0:01:47]} 23. Qh1 {[%emt 0:07:20]} Nac6 {[%emt 0:02:54]} 24. Rbb1 {[%emt 0:06:37]} Qe8 {[%emt 0:04:13]} 25. a5 {[%emt 0:06:15]} Nxa5 {[%emt 0:00:59]} 26. f5 {[%emt 0:08:23]} g5 {[%emt 0:03:44]} 27. f6 {[%emt 0:00:08]} Nc8 {[%emt 0:04:58]} 28. Ng2 {[%emt 0:05:21]} Nb7 {[%emt 0:02:44]} 29. Ra2 {[%emt 0:08:24]} a5 {[%emt 0:02:10]} 30. Ke1 {[%emt 0:10:13]} b5 {[%emt 0:01:46]} 31. Bc1 {[%emt 0:00:09]} Nb6 {[%emt 0:00:26]} 32. Ne3 {[%emt 0:00:16]} Bc6 {[%emt 0:00:57]} 33. Ba3 {[%emt 0:02:16]} Na4 {[%emt 0:01:39]} 34. Kd2 {[%emt 0:00:10]} Qb8 {[%emt 0:09:21]} 35. Be7 {[%emt 0:12:45]} Rc8 {[%emt 0:02:01]} 36. Bf3 {[%emt 0:05:04]} Nb6 {[%emt 0:06:40]} 37. Qc1 {[%emt 0:04:32]} Qa7 {[%emt 0:00:47]} 38. Rba1 {[%emt 0:03:16]} Na4 {[%emt 0:01:30]} 39. Qh1 {[%emt 0:00:06]} Nb6 {[%emt 0:05:31]} 40. Bb4 {[%emt 0:00:09]} 1/2-1/2

[Event "Charlotte CC Fall GM-ALTO 2024"]
[Site "Charlotte"]
[Date "2024.11.24"]
[Round "5.5"]
[White "Fernandez, Daniel Howard"]
[Black "Ouellet, Maili-Jade"]
[Result "0-1"]
[ECO "C60"]
[WhiteElo "2503"]
[BlackElo "2352"]
[Annotator "TA"]
[PlyCount "90"]
[EventDate "2024.11.22"]
[EventType "tourn"]
[EventCountry "USA"]
[SourceTitle "playchess.com"]
[Source "ChessBase"]
[SourceQuality "1"]
[TimeControl "5400+30"]

{[%evp 9,89,38,38,30,32,39,35,22,11,0,3,10,17,16,31,38,27,0,0,18,2,-23,-32,-28,-26,-35,-44,-42,-33,-37,-33,-46,-47,-320,-303,-314,-313,-321,-335,-323,-329,-324,-320,-345,-352,-367,-377,-425,-420,-413,-412,-419,-408,-492,-478,-485,-434,-498,-504,-508,-500,-461,-316,-549,-538,-546,-545,-685,-672,-844,-701,-701,-701,-773,-764,-4822,-1198,-29997,-29998,-29998,-29999,-29999]} 1. e4 {[%emt 0:05:54]} e5 {[%emt 0:00:04]} 2. Nf3 {[%emt 0:00:38]} Nc6 {[%emt 0:00:04]} 3. Bb5 {[%emt 0:00:28]} Nge7 {[%emt 0:00:07]} 4. Nc3 {[%emt 0:01:20]} Ng6 {[%emt 0:00:10]} 5. d4 {[%emt 0:01:15]} exd4 {[%emt 0:00:17]} 6. Nxd4 {[%emt 0:00:04]} Nxd4 {[%emt 0:05:36]} 7. Qxd4 {[%emt 0:00:03]} c6 {[%emt 0:00:04]} 8. Be2 {[%emt 0:00:52] White is slightly better.} Qb6 $1 {[%emt 0:00:04]} 9. Qd2 {[%emt 0:00:52]} Be7 {[%emt 0:00:41] Against h4} 10. b3 {[%emt 0:01:33]} O-O {[%emt 0:00:17]} 11. Bb2 {[%emt 0:02:27]} Re8 {[%emt 0:00:13]} 12. O-O {[%emt 0:02:49]} Qc5 {[%emt 0:01:26]} 13. Kh1 {[%emt 0:00:48]} Qd6 {[%emt 0:00:28]} 14. Bd3 {[%emt 0:13:52]} Qf4 {[%emt 0:05:58]} 15. Qxf4 {[%emt 0:07:51]} Nxf4 {[%emt 0:00:05]} 16. Bc4 {[%emt 0:02:55]} b5 {[%emt 0:04:26]} 17. g3 {[%emt 0:00:49]} bxc4 {[%emt 0:08:40]} 18. gxf4 {[%emt 0:00:02]} d5 {[%emt 0:02:15]} 19. exd5 {[%emt 0:00:48]} cxd5 {[%emt 0:03:17]} 20. Nxd5 {[%emt 0:03:01] Strongly threatening Nc7.} Bb7 $36 {[%emt 0:02:50][%mdl 2048] White is under pressure.} 21. Rad1 {[%emt 0:00:41][%mdl 8192] [#] This costs White the game.} ({White must play} 21. bxc4 $15 Bf8 22. Kg1) 21... c3 $1 $19 {[%emt 0:01:38][%mdl 512]} 22. Bxc3 {[%emt 0:03:52]} Rad8 {[%emt 0:01:29]} 23. Rfe1 {[%emt 0:00:25]} Rxd5 {[%emt 0:01:38]} ({But not} 23... Bxd5+ 24. Kg1 $19) 24. Rxd5 {[%emt 0:00:05]} Bxd5+ {[%emt 0:00:04] This pair of bishops is nice.} 25. Kg1 {[%emt 0:00:07]} Bc6 {[%emt 0:02:21]} 26. Bd4 {[%emt 0:00:08]} a6 {[%emt 0:00:27]} 27. Be3 {[%emt 0:00:18]} Rd8 {[%emt 0:03:28]} 28. Kf1 {[%emt 0:00:01]} Bb4 {[%emt 0:01:07]} 29. Rc1 {[%emt 0:00:02]} Bc3 {[%emt 0:01:23]} 30. Ke2 {[%emt 0:00:03]} f6 {[%emt 0:00:50]} 31. a4 {[%emt 0:00:11]} Be4 {[%emt 0:00:37]} 32. f3 {[%emt 0:01:41]} Bb7 {[%emt 0:00:43]} 33. h4 {[%emt 0:01:22]} a5 {[%emt 0:00:18]} 34. Kf2 {[%emt 0:00:17]} Kf7 {[%emt 0:00:13]} 35. Kg3 {[%emt 0:00:15]} f5 {[%emt 0:00:26]} 36. Bb6 $2 {[%emt 0:00:34]} (36. h5) 36... Rd2 {[%emt 0:01:31]} 37. Bc7 {[%emt 0:00:06]} Re2 {[%emt 0:00:59]} 38. Rf1 {[%emt 0:00:21]} Rxc2 {[%emt 0:00:39]} 39. Be5 {[%emt 0:00:08]} Bb4 {[%emt 0:00:48]} 40. Rd1 {[%emt 0:00:08]} Bc6 {[%emt 0:01:32]} 41. h5 {[%emt 0:00:10]} Re2 {[%emt 0:00:44] And now ...Be1+ would win.} 42. Kh4 {[%emt 0:00:12]} Be1+ {[%emt 0:02:00]} 43. Kg5 {[%emt 0:00:42]} Rg2+ {[%emt 0:00:09] Black mates.} 44. Kxf5 {[%emt 0:00:02]} g6+ {[%emt 0:00:06]} 45. hxg6+ {[%emt 0:00:06]} hxg6# {[%emt 0:00:03] Weighted Error Value: White=0.74/Black=0.09 (flawless) .  Loses game:     	White=1     	---        Mistake:       	White=1     	---        Inaccurate:     	---       	Black=1      OK:         	White=9     	Black=17     Best:        	White=2     	Black=2      Strong:       	---       	Black=1      Brilliant:      	---       	Black=1} 0-1

[Event "Charlotte CC Fall GM-ALTO 2024"]
[Site "Charlotte"]
[Date "2024.11.25"]
[Round "6.1"]
[White "Stremavicius, Titas"]
[Black "Ouellet, Maili-Jade"]
[Result "1/2-1/2"]
[ECO "E06"]
[WhiteElo "2545"]
[BlackElo "2352"]
[Annotator "TA"]
[PlyCount "99"]
[EventDate "2024.11.22"]
[EventType "tourn"]
[EventCountry "USA"]
[SourceTitle "playchess.com"]
[Source "ChessBase"]
[SourceQuality "1"]
[TimeControl "5400+30"]

{[%evp 21,99,16,10,5,20,16,13,6,12,15,25,34,38,29,22,2,34,31,34,3,4,0,0,0,0,0,0,0,0,0,8,0,4,0,17,11,14,0,4,0,0,0,0,0,0,0,0,0,0,0,0,0,0,0,0,0,0,0,0,0,0,0,0,0,0,0,0,0,0,0,0,0,0,0,0,0,0,0,0,0]} 1. c4 {[%emt 0:01:04]} e6 {[%emt 0:00:06]} 2. Nf3 {[%emt 0:00:11]} d5 {[%emt 0:00:08]} 3. g3 {[%emt 0:00:05]} Nf6 {[%emt 0:00:09]} 4. Bg2 {[%emt 0:00:07]} Be7 {[%emt 0:00:08]} 5. d4 {[%emt 0:00:06]} O-O {[%emt 0:00:06]} 6. Nc3 {[%emt 0:00:04]} dxc4 {[%emt 0:00:29]} 7. Ne5 {[%emt 0:00:06]} Nc6 {[%emt 0:00:15]} 8. Bxc6 {[%emt 0:00:05]} bxc6 {[%emt 0:00:04]} 9. Nxc6 {[%emt 0:00:07]} Qe8 {[%emt 0:00:07]} 10. Nxe7+ {[%emt 0:00:04]} Qxe7 {[%emt 0:00:04]} 11. Qa4 {[%emt 0:00:09]} c5 {[%emt 0:21:05]} 12. dxc5 {[%emt 0:00:15]} Qxc5 {[%emt 0:01:39]} 13. Be3 {[%emt 0:00:08]} Qc7 {[%emt 0:02:03]} 14. f3 {[%emt 0:00:32] Prevents Ng4. Black is weak on the dark squares} Bd7 {[%emt 0:02:45]} 15. Qa3 {[%emt 0:03:34]} Rfc8 {[%emt 0:05:32]} 16. Rd1 {[%emt 0:08:36]} Bc6 {[%emt 0:05:13]} 17. O-O {[%emt 0:11:10]} Nd5 {[%emt 0:04:13]} 18. Bd4 {[%emt 0:00:25]} Nxc3 {[%emt 0:16:31]} 19. Qxc3 {[%emt 0:09:39]} (19. Bxc3 {is interesting.} Qb6+ 20. Kg2 Qe3 21. Rfe1) 19... Ba4 {[%emt 0:00:39]} 20. Rc1 {[%emt 0:02:18]} f6 {[%emt 0:00:35] The position is equal.} 21. b3 {[%emt 0:03:58]} Bb5 {[%emt 0:01:58]} 22. a4 {[%emt 0:01:30]} Bd7 {[%emt 0:00:59]} 23. a5 {[%emt 0:10:33][%cal Rb3c4]} e5 {[%emt 0:00:37]} 24. Be3 {[%emt 0:00:36]} Be6 {[%emt 0:01:00]} 25. Rfd1 {[%emt 0:00:59]} Qb7 {[%emt 0:01:44]} 26. b4 {[%emt 0:00:14]} Rd8 {[%emt 0:02:48]} 27. Bc5 {[%emt 0:07:14]} Rd7 {[%emt 0:03:08]} 28. Rxd7 {[%emt 0:01:40]} Qxd7 {[%emt 0:00:13]} 29. a6 {[%emt 0:00:10]} Qa4 {[%emt 0:06:18]} 30. Ra1 {[%emt 0:02:26]} Qb3 {[%emt 0:00:03]} 31. Qe3 {[%emt 0:08:23]} (31. Qc1 $5 c3 $8 32. Ra3 $11) 31... Qxe3+ {[%emt 0:00:44]} 32. Bxe3 $11 {[%emt 0:00:03][%mdl 4096] Endgame. KRB-KRB} c3 $1 {[%emt 0:00:36]} 33. Rc1 {[%emt 0:02:17]} Bc4 {[%emt 0:00:28]} 34. Kf2 {[%emt 0:00:05]} Bxa6 {[%emt 0:00:37]} 35. Rxc3 {[%emt 0:00:03]} Bb5 {[%emt 0:00:16]} 36. g4 {[%emt 0:01:18]} a6 {[%emt 0:00:38]} 37. g5 {[%emt 0:00:18]} Rd8 {[%emt 0:00:54]} 38. h4 {[%emt 0:00:24]} Kf7 {[%emt 0:00:24]} 39. h5 {[%emt 0:00:40]} Rd7 {[%emt 0:03:22]} 40. Rc8 {[%emt 0:00:30]} Rd1 {[%emt 0:00:30]} 41. Rc7+ {[%emt 0:00:30]} Rd7 {[%emt 0:00:30]} 42. Rc1 {[%emt 0:00:30]} Rd6 {[%emt 0:00:30]} 43. gxf6 {[%emt 0:00:30]} gxf6 {[%emt 0:00:30]} 44. h6 {[%emt 0:04:33]} Rd7 {[%emt 0:03:37]} 45. Rc8 {[%emt 0:00:30]} Ke6 {[%emt 0:00:30]} 46. Rh8 {[%emt 0:00:30]} Kf5 {[%emt 0:00:30]} 47. Bc1 {[%emt 0:00:30]} Rc7 {[%emt 0:00:30]} 48. e4+ {[%emt 0:00:30]} Ke6 {[%emt 0:00:30] [#] Hoping for ...Rc2+.} 49. Be3 {[%emt 0:03:03]} f5 {[%emt 0:03:12]} 50. exf5+ {[%emt 0:03:59] Weighted Error Value: White=0.03 (flawless) /Black=0.02 (flawless) .  Inaccurate:     	White=1     	Black=1      OK:         	White=17    	Black=20     Best:        	---       	Black=1      Strong:       	---       	Black=1} 1/2-1/2